[Event "*** Titled Tuesday Blitz"]
[Site "Chess.com"]
[Date "2020.01.07"]
[Round "5"]
[White "MFBerna"]
[Black "PNEPaul"]
[Result "0-1"]
[WhiteElo "2446"]
[BlackElo "1828"]
[TimeControl "180+2"]
[EndTime "14:07:41 PST"]
[Termination "PNEPaul won by resignation"]

1. g3 {[%clk 0:02:59.4]} 1... a6 {[%clk 0:02:59.4]} 2. Bg2 {[%clk 0:03:01.3]}
2... d6 {[%clk 0:03:00.6]} 3. d4 {[%clk 0:03:02.5]} 3... g6 {[%clk 0:03:01.7]}
4. e4 {[%clk 0:03:03.4]} 4... Nd7 {[%clk 0:03:02.8]} 5. Ne2 {[%clk 0:03:04.7]}
5... Bg7 {[%clk 0:03:03.9]} 6. Nbc3 {[%clk 0:03:05.4]} 6... e6 {[%clk 0:03:05]}
7. h4 {[%clk 0:03:05.9]} 7... h5 {[%clk 0:03:04.7]} 8. Be3 {[%clk 0:03:05.9]}
8... Ne7 {[%clk 0:03:04.5]} 9. Qd2 {[%clk 0:03:06.2]} 9... Nf6 {[%clk
0:03:03.2]} 10. Bg5 {[%clk 0:03:03]} 10... Nh7 {[%clk 0:02:57]} 11. Be3 {[%clk
0:03:03.1]} 11... Nf6 {[%clk 0:02:57.1]} 12. O-O-O {[%clk 0:03:01.5]} 12... Ng4
{[%clk 0:02:57.8]} 13. f4 {[%clk 0:02:53.9]} 13... Nxe3 {[%clk 0:02:57.7]} 14.
Qxe3 {[%clk 0:02:55.8]} 14... O-O {[%clk 0:02:50.3]} 15. g4 {[%clk 0:02:52.9]}
15... hxg4 {[%clk 0:02:49.6]} 16. h5 {[%clk 0:02:54.8]} 16... f5 {[%clk
0:02:41.3]} 17. hxg6 {[%clk 0:02:45.1]} 17... Nxg6 {[%clk 0:02:39.6]} 18. Ng3
{[%clk 0:02:41.2]} 18... Nh4 {[%clk 0:02:29]} 19. Rxh4 {[%clk 0:02:34]} 19...
Qxh4 {[%clk 0:02:28.7]} 20. Rh1 {[%clk 0:02:35.9]} 20... Qf6 {[%clk 0:02:12.5]}
21. e5 {[%clk 0:02:30.6]} 21... Qg6 {[%clk 0:02:04]} 22. d5 {[%clk 0:02:25.1]}
22... dxe5 {[%clk 0:01:57.9]} 23. dxe6 {[%clk 0:02:22.4]} 23... Bxe6 {[%clk
0:01:57.7]} 24. Nd5 {[%clk 0:02:20.7]} 24... exf4 {[%clk 0:01:34.5]} 25. Ne7+
{[%clk 0:02:20.7]} 25... Kf7 {[%clk 0:01:33.9]} 26. Qc5 {[%clk 0:02:16.9]} 26...
Qf6 {[%clk 0:01:28.1]} 27. Rh7 {[%clk 0:02:08.9]} 27... Qxb2+ {[%clk 0:01:22.9]}
28. Kd2 {[%clk 0:02:09.6]} 28... Rad8+ {[%clk 0:01:20.2]} 29. Nd5 {[%clk
0:02:06.2]} 29... Bxd5 {[%clk 0:00:47.3]} 30. Bxd5+ {[%clk 0:02:04.9]} 30... Kg6
{[%clk 0:00:44.2]} 31. Rxg7+ {[%clk 0:01:46.5]} 31... Qxg7 {[%clk 0:00:35.8]}
32. Ne2 {[%clk 0:01:46.1]} 32... Qe5 {[%clk 0:00:23.6]} 33. c4 {[%clk
0:01:33.9]} 33... c6 {[%clk 0:00:23]} 34. Qb6 {[%clk 0:01:27.2]} 34... Qe3+
{[%clk 0:00:15.4]} 0-1

[Event "*** Titled Tuesday Blitz"]
[Site "Chess.com"]
[Date "2020.01.07"]
[Round "5"]
[White "chessbia"]
[Black "Chimpinha"]
[Result "0-1"]
[WhiteElo "2188"]
[BlackElo "2388"]
[TimeControl "180+2"]
[EndTime "14:08:02 PST"]
[Termination "Chimpinha won by resignation"]

1. Nf3 {[%clk 0:03:01.9]} 1... Nf6 {[%clk 0:02:59]} 2. e3 {[%clk 0:03:03.8]}
2... g6 {[%clk 0:02:59.3]} 3. c4 {[%clk 0:03:05.7]} 3... Bg7 {[%clk 0:02:59.9]}
4. Nc3 {[%clk 0:03:07.6]} 4... d6 {[%clk 0:03:00.3]} 5. b3 {[%clk 0:03:09.3]}
5... O-O {[%clk 0:03:01]} 6. Bb2 {[%clk 0:03:11]} 6... e5 {[%clk 0:03:01.8]} 7.
h4 {[%clk 0:03:12.3]} 7... c6 {[%clk 0:02:57.2]} 8. Be2 {[%clk 0:03:08.2]} 8...
Re8 {[%clk 0:02:47.4]} 9. d3 {[%clk 0:03:09.1]} 9... d5 {[%clk 0:02:48]} 10. h5
{[%clk 0:03:05.1]} 10... Nxh5 {[%clk 0:02:44.2]} 11. Rxh5 {[%clk 0:03:01.8]}
11... gxh5 {[%clk 0:02:44.9]} 12. cxd5 {[%clk 0:02:58.5]} 12... cxd5 {[%clk
0:02:45.2]} 13. e4 {[%clk 0:02:50.2]} 13... dxe4 {[%clk 0:02:39.9]} 14. Nxe4
{[%clk 0:02:50]} 14... Nc6 {[%clk 0:02:32.6]} 15. Nfg5 {[%clk 0:02:41.7]} 15...
f5 {[%clk 0:02:23.9]} 16. Bxh5 {[%clk 0:02:33.8]} 16... fxe4 {[%clk 0:02:24.2]}
17. Bxe8 {[%clk 0:02:32.2]} 17... Qxe8 {[%clk 0:02:25]} 18. dxe4 {[%clk
0:02:31.7]} 18... Be6 {[%clk 0:02:21]} 19. Qd6 {[%clk 0:02:23.7]} 19... Bf7
{[%clk 0:02:14.2]} 20. Qc7 {[%clk 0:01:59.2]} 20... Qe7 {[%clk 0:02:09]} 21.
Qxe7 {[%clk 0:01:52.7]} 21... Nxe7 {[%clk 0:02:09.2]} 22. Nxf7 {[%clk
0:01:54.6]} 22... Kxf7 {[%clk 0:02:09.8]} 23. Rc1 {[%clk 0:01:55.5]} 23... Rc8
{[%clk 0:02:09.2]} 24. Rxc8 {[%clk 0:01:53.5]} 24... Nxc8 {[%clk 0:02:10]} 25.
Ke2 {[%clk 0:01:52.2]} 25... Ke6 {[%clk 0:02:08.8]} 26. f4 {[%clk 0:01:52.2]}
26... Nd6 {[%clk 0:02:05.7]} 27. Kf3 {[%clk 0:01:51.8]} 27... Bf6 {[%clk
0:02:05]} 28. f5+ {[%clk 0:01:48.3]} 28... Kd7 {[%clk 0:02:06.1]} 29. g4 {[%clk
0:01:48.4]} 29... Nb5 {[%clk 0:02:05.1]} 30. Bc1 {[%clk 0:01:31.6]} 30... Nd4+
{[%clk 0:02:05.7]} 31. Kf2 {[%clk 0:01:28.4]} 31... Bh4+ {[%clk 0:02:05.4]} 32.
Kg2 {[%clk 0:01:26.3]} 32... Ne2 {[%clk 0:02:01.2]} 33. Bd2 {[%clk 0:01:24.7]}
33... Nf4+ {[%clk 0:02:00.7]} 34. Bxf4 {[%clk 0:01:20.2]} 34... exf4 {[%clk
0:02:01.2]} 35. Kf3 {[%clk 0:01:21.9]} 35... Bg5 {[%clk 0:01:59.8]} 36. e5
{[%clk 0:01:23.3]} 36... Ke7 {[%clk 0:01:50.7]} 37. Ke4 {[%clk 0:01:23.8]} 37...
Kd7 {[%clk 0:01:43.1]} 38. Kf3 {[%clk 0:01:22]} 38... Kc6 {[%clk 0:01:37]} 39.
Ke4 {[%clk 0:01:21.4]} 39... h6 {[%clk 0:01:32.9]} 40. a3 {[%clk 0:01:16.1]}
40... b6 {[%clk 0:01:28.6]} 41. Kd4 {[%clk 0:00:58.3]} 41... f3 {[%clk
0:01:28.7]} 42. Kd3 {[%clk 0:00:50.4]} 42... Kd5 {[%clk 0:01:29.5]} 43. e6
{[%clk 0:00:46.2]} 43... Ke5 {[%clk 0:01:30.5]} 0-1

[Event "*** Titled Tuesday Blitz"]
[Site "Chess.com"]
[Date "2020.01.07"]
[Round "5"]
[White "Squirlolz"]
[Black "Quiet_Desperation"]
[Result "1-0"]
[WhiteElo "2646"]
[BlackElo "2376"]
[TimeControl "180+2"]
[EndTime "14:08:07 PST"]
[Termination "Squirlolz won by resignation"]

1. Nc3 {[%clk 0:03:01.9]} 1... Nf6 {[%clk 0:02:56.6]} 2. d4 {[%clk 0:03:02.3]}
2... e6 {[%clk 0:02:57.6]} 3. Bf4 {[%clk 0:03:01.7]} 3... d5 {[%clk 0:02:52.6]}
4. e3 {[%clk 0:03:00.2]} 4... Bb4 {[%clk 0:02:53.2]} 5. Ne2 {[%clk 0:02:54.4]}
5... O-O {[%clk 0:02:43.6]} 6. a3 {[%clk 0:02:54.7]} 6... Bd6 {[%clk 0:02:44.7]}
7. g3 {[%clk 0:02:51.8]} 7... a6 {[%clk 0:02:42.4]} 8. Bg2 {[%clk 0:02:52.2]}
8... Be7 {[%clk 0:02:35.9]} 9. e4 {[%clk 0:02:44.6]} 9... dxe4 {[%clk
0:02:34.5]} 10. Nxe4 {[%clk 0:02:44.7]} 10... Nxe4 {[%clk 0:02:35.8]} 11. Bxe4
{[%clk 0:02:46.6]} 11... Nd7 {[%clk 0:02:36.4]} 12. O-O {[%clk 0:02:46.9]} 12...
Bd6 {[%clk 0:02:33.6]} 13. Qd3 {[%clk 0:02:38.7]} 13... f5 {[%clk 0:02:29.6]}
14. Bg2 {[%clk 0:02:38.3]} 14... Qe7 {[%clk 0:02:20.5]} 15. Rfe1 {[%clk
0:02:34.8]} 15... Nf6 {[%clk 0:02:08.7]} 16. Qb3 {[%clk 0:02:28.9]} 16... Qf7
{[%clk 0:02:05.6]} 17. Bxd6 {[%clk 0:02:14.2]} 17... cxd6 {[%clk 0:02:04.4]} 18.
Nf4 {[%clk 0:02:16.1]} 18... Re8 {[%clk 0:01:49.8]} 19. Nd3 {[%clk 0:01:40.2]}
19... Rb8 {[%clk 0:01:29.3]} 20. Qb6 {[%clk 0:01:37.8]} 20... Qf8 {[%clk
0:01:06.3]} 21. Qc7 {[%clk 0:01:19.6]} 21... Bd7 {[%clk 0:00:48.4]} 22. Bxb7
{[%clk 0:01:18.7]} 22... Re7 {[%clk 0:00:23.2]} 23. Bg2 {[%clk 0:01:19.3]} 23...
Rf7 {[%clk 0:00:24.4]} 24. Qa5 {[%clk 0:01:10.8]} 24... Ne4 {[%clk 0:00:24.2]}
25. Bxe4 {[%clk 0:01:02.8]} 25... fxe4 {[%clk 0:00:25.4]} 26. Rxe4 {[%clk
0:01:04.7]} 26... Bc6 {[%clk 0:00:21.3]} 27. Rxe6 {[%clk 0:01:03.1]} 27... Rb5
{[%clk 0:00:05.2]} 28. Qxa6 {[%clk 0:00:53.4]} 28... Bf3 {[%clk 0:00:04.8]} 29.
Qxb5 {[%clk 0:00:52]} 29... Re7 {[%clk 0:00:05.8]} 1-0

[Event "*** Titled Tuesday Blitz"]
[Site "Chess.com"]
[Date "2020.01.07"]
[Round "5"]
[White "maciek_92"]
[Black "GadimbayliA"]
[Result "1-0"]
[WhiteElo "2816"]
[BlackElo "2953"]
[TimeControl "180+2"]
[EndTime "14:08:08 PST"]
[Termination "maciek_92 won by checkmate"]

1. e4 {[%clk 0:03:01.9]} 1... e5 {[%clk 0:02:58.9]} 2. Nf3 {[%clk 0:03:03]} 2...
d5 {[%clk 0:02:59.5]} 3. exd5 {[%clk 0:02:52.3]} 3... e4 {[%clk 0:03:01.4]} 4.
Qe2 {[%clk 0:02:53.1]} 4... Nf6 {[%clk 0:03:02.6]} 5. Nc3 {[%clk 0:02:49.4]}
5... Be7 {[%clk 0:03:02.5]} 6. Nxe4 {[%clk 0:02:47.8]} 6... O-O {[%clk
0:03:03.6]} 7. d3 {[%clk 0:02:47.8]} 7... Nxd5 {[%clk 0:03:04.7]} 8. Bd2 {[%clk
0:02:30]} 8... f5 {[%clk 0:03:03.8]} 9. Nc3 {[%clk 0:02:31.4]} 9... Nxc3 {[%clk
0:02:48.6]} 10. Bxc3 {[%clk 0:02:20.9]} 10... Re8 {[%clk 0:02:50.2]} 11. Ne5
{[%clk 0:02:19.1]} 11... Nc6 {[%clk 0:02:49.1]} 12. f4 {[%clk 0:02:13.7]} 12...
Nd4 {[%clk 0:02:47.6]} 13. Bxd4 {[%clk 0:02:01.9]} 13... Qxd4 {[%clk 0:02:49.5]}
14. c3 {[%clk 0:02:02.8]} 14... Qxf4 {[%clk 0:02:44.1]} 15. g3 {[%clk
0:01:59.2]} 15... Qh6 {[%clk 0:02:43.7]} 16. Bg2 {[%clk 0:01:54.1]} 16... Bd6
{[%clk 0:02:44]} 17. d4 {[%clk 0:01:51]} 17... Bxe5 {[%clk 0:02:45.2]} 18. dxe5
{[%clk 0:01:52.9]} 18... Be6 {[%clk 0:02:46.6]} 19. O-O {[%clk 0:01:49.7]} 19...
Rad8 {[%clk 0:02:45.7]} 20. Rad1 {[%clk 0:01:50]} 20... Rxd1 {[%clk 0:02:21.2]}
21. Rxd1 {[%clk 0:01:51.9]} 21... Bxa2 {[%clk 0:02:21.8]} 22. c4 {[%clk
0:01:23.4]} 22... b5 {[%clk 0:02:14.6]} 23. cxb5 {[%clk 0:01:14.7]} 23... Qb6+
{[%clk 0:02:14.7]} 24. Kh1 {[%clk 0:01:15.3]} 24... Bb3 {[%clk 0:02:04.8]} 25.
Rd7 {[%clk 0:01:00.2]} 25... Qc5 {[%clk 0:01:35.8]} 26. Bc6 {[%clk 0:00:48.1]}
26... Rxe5 {[%clk 0:00:55.9]} 27. Rd8+ {[%clk 0:00:47]} 27... Kf7 {[%clk
0:00:56.9]} 28. Qh5+ {[%clk 0:00:48.4]} 28... Kf6 {[%clk 0:00:58.2]} 29. Qh4+
{[%clk 0:00:46.6]} 29... Kg6 {[%clk 0:00:59.3]} 30. Kg2 {[%clk 0:00:22.5]} 30...
Bd5+ {[%clk 0:00:48]} 31. Rxd5 {[%clk 0:00:22.7]} 31... Rxd5 {[%clk 0:00:49.9]}
32. Be8# {[%clk 0:00:23.8]} 1-0

[Event "*** Titled Tuesday Blitz"]
[Site "Chess.com"]
[Date "2020.01.07"]
[Round "5"]
[White "Gabrielian_Artur"]
[Black "ExploringChess"]
[Result "0-1"]
[WhiteElo "2785"]
[BlackElo "2601"]
[TimeControl "180+2"]
[EndTime "14:08:11 PST"]
[Termination "ExploringChess won by resignation"]

1. e4 {[%clk 0:03:01.9]} 1... e6 {[%clk 0:03:00.5]} 2. d3 {[%clk 0:03:01.6]}
2... d5 {[%clk 0:03:01.4]} 3. Qe2 {[%clk 0:03:02.8]} 3... dxe4 {[%clk
0:03:01.3]} 4. dxe4 {[%clk 0:03:03.6]} 4... e5 {[%clk 0:03:02.8]} 5. Nf3 {[%clk
0:03:01.4]} 5... Nc6 {[%clk 0:03:02.5]} 6. c3 {[%clk 0:02:56]} 6... a5 {[%clk
0:03:01.6]} 7. Nbd2 {[%clk 0:02:50.3]} 7... Bc5 {[%clk 0:02:55.1]} 8. Nb3 {[%clk
0:02:43.9]} 8... Bb6 {[%clk 0:02:53.3]} 9. Bg5 {[%clk 0:02:44.5]} 9... Nf6
{[%clk 0:02:50.3]} 10. Rd1 {[%clk 0:02:30.3]} 10... Qe7 {[%clk 0:02:50.8]} 11.
Qc2 {[%clk 0:02:19.8]} 11... O-O {[%clk 0:02:46.9]} 12. Bb5 {[%clk 0:02:19.3]}
12... a4 {[%clk 0:02:28.4]} 13. Nbd2 {[%clk 0:02:19.6]} 13... Qc5 {[%clk
0:02:27.1]} 14. O-O {[%clk 0:01:38.1]} 14... Qxb5 {[%clk 0:02:27.6]} 15. Bxf6
{[%clk 0:01:38.3]} 15... gxf6 {[%clk 0:02:29.5]} 16. Nb1 {[%clk 0:01:29.9]}
16... Ne7 {[%clk 0:02:29.8]} 17. Qd2 {[%clk 0:01:22]} 17... Ng6 {[%clk 0:02:30]}
18. Qh6 {[%clk 0:01:21]} 18... Re8 {[%clk 0:02:21.6]} 19. h4 {[%clk 0:01:18.1]}
19... Bc5 {[%clk 0:02:18.8]} 20. h5 {[%clk 0:01:19.1]} 20... Bf8 {[%clk
0:02:18.2]} 21. Qe3 {[%clk 0:01:20.1]} 21... Nf4 {[%clk 0:02:16.8]} 22. Nh4
{[%clk 0:01:17.8]} 22... Bh6 {[%clk 0:02:02.9]} 23. Na3 {[%clk 0:00:55.2]} 23...
Ne2+ {[%clk 0:01:56.2]} 24. Kh1 {[%clk 0:00:48.1]} 24... Bxe3 {[%clk 0:01:51.5]}
25. Nxb5 {[%clk 0:00:48.1]} 25... Bb6 {[%clk 0:01:51.1]} 26. g3 {[%clk
0:00:44.5]} 26... Be6 {[%clk 0:01:51.8]} 27. Na3 {[%clk 0:00:34.8]} 27... Bc5
{[%clk 0:01:49.1]} 28. Nc2 {[%clk 0:00:27.5]} 28... a3 {[%clk 0:01:45.4]} 29. b4
{[%clk 0:00:27.6]} 29... Bb6 {[%clk 0:01:46.4]} 30. Rd3 {[%clk 0:00:15.4]} 30...
Bxa2 {[%clk 0:01:46]} 31. Nf5 {[%clk 0:00:12.1]} 31... Bc4 {[%clk 0:01:44]} 32.
Rf3 {[%clk 0:00:13.3]} 32... Nd4 {[%clk 0:01:36.6]} 33. cxd4 {[%clk 0:00:12.7]}
33... Bxf1 {[%clk 0:01:37.2]} 34. Nxa3 {[%clk 0:00:13]} 34... Bxd4 {[%clk
0:01:33.6]} 35. Nh6+ {[%clk 0:00:13.5]} 35... Kf8 {[%clk 0:01:31.7]} 36. Nc2
{[%clk 0:00:12.6]} 36... Be2 {[%clk 0:01:30.5]} 37. Rxf6 {[%clk 0:00:13.6]}
37... Kg7 {[%clk 0:01:26.4]} 0-1

[Event "*** Titled Tuesday Blitz"]
[Site "Chess.com"]
[Date "2020.01.07"]
[Round "5"]
[White "MikeSailer"]
[Black "Gahan-MG"]
[Result "0-1"]
[WhiteElo "2115"]
[BlackElo "2502"]
[TimeControl "180+2"]
[EndTime "14:08:12 PST"]
[Termination "Gahan-MG won by resignation"]

1. b4 {[%clk 0:02:47.3]} 1... e5 {[%clk 0:02:59.4]} 2. Bb2 {[%clk 0:02:48.3]}
2... Bxb4 {[%clk 0:03:00.9]} 3. Bxe5 {[%clk 0:02:48.3]} 3... Nf6 {[%clk
0:03:02.4]} 4. Nf3 {[%clk 0:02:49.1]} 4... Nc6 {[%clk 0:03:03.4]} 5. Bb2 {[%clk
0:02:48.9]} 5... O-O {[%clk 0:03:04.6]} 6. e3 {[%clk 0:02:49.5]} 6... Re8 {[%clk
0:03:05.5]} 7. Be2 {[%clk 0:02:39.2]} 7... d5 {[%clk 0:03:05.7]} 8. O-O {[%clk
0:02:39.8]} 8... a5 {[%clk 0:03:05]} 9. c4 {[%clk 0:02:37.7]} 9... a4 {[%clk
0:03:04.5]} 10. a3 {[%clk 0:02:38.3]} 10... Bd6 {[%clk 0:03:05.1]} 11. d4 {[%clk
0:02:34.4]} 11... dxc4 {[%clk 0:03:01]} 12. Bxc4 {[%clk 0:02:34.3]} 12... Ne4
{[%clk 0:03:00.9]} 13. Nbd2 {[%clk 0:02:32.8]} 13... Nxd2 {[%clk 0:02:58]} 14.
Qxd2 {[%clk 0:02:29.5]} 14... Bg4 {[%clk 0:02:57.4]} 15. Be2 {[%clk 0:02:30.2]}
15... Na5 {[%clk 0:02:51.9]} 16. Rad1 {[%clk 0:02:12.2]} 16... Qe7 {[%clk
0:02:49.8]} 17. Qc3 {[%clk 0:02:09.1]} 17... Nb3 {[%clk 0:02:30.1]} 18. h3
{[%clk 0:02:05.7]} 18... Bf5 {[%clk 0:02:20.3]} 19. Bd3 {[%clk 0:02:03.8]} 19...
Bxd3 {[%clk 0:02:19.9]} 20. Qxd3 {[%clk 0:02:04]} 20... Bxa3 {[%clk 0:02:18.5]}
21. Bxa3 {[%clk 0:01:49.8]} 21... Qxa3 {[%clk 0:02:20.4]} 22. Ne5 {[%clk
0:01:42.7]} 22... Qe7 {[%clk 0:02:12]} 23. Qb5 {[%clk 0:01:31.6]} 23... c6
{[%clk 0:02:10.9]} 24. Qc4 {[%clk 0:01:20.1]} 24... Qe6 {[%clk 0:02:10.3]} 25.
Qb4 {[%clk 0:01:10.2]} 25... b5 {[%clk 0:02:08.9]} 26. f4 {[%clk 0:01:08.8]}
26... a3 {[%clk 0:02:01.4]} 27. f5 {[%clk 0:01:09.6]} 27... Qd5 {[%clk
0:02:02.6]} 28. f6 {[%clk 0:01:01.1]} 28... a2 {[%clk 0:01:42.6]} 29. e4 {[%clk
0:00:46.3]} 29... Qe6 {[%clk 0:01:19.1]} 30. Ra1 {[%clk 0:00:39.6]} 30... Nxa1
{[%clk 0:01:17.2]} 31. Rxa1 {[%clk 0:00:39.4]} 31... Qxf6 {[%clk 0:01:11.7]} 32.
Ng4 {[%clk 0:00:32.6]} 32... Qe7 {[%clk 0:01:09]} 33. Qb3 {[%clk 0:00:28.7]}
33... Qxe4 {[%clk 0:01:07.3]} 34. Rxa2 {[%clk 0:00:29.8]} 34... Qxd4+ {[%clk
0:01:06.6]} 35. Kh2 {[%clk 0:00:25.5]} 35... Rxa2 {[%clk 0:01:03.6]} 36. Qxa2
{[%clk 0:00:25.9]} 36... Qf4+ {[%clk 0:01:04.7]} 37. g3 {[%clk 0:00:25.5]} 37...
Qc4 {[%clk 0:01:05.6]} 0-1

[Event "*** Titled Tuesday Blitz"]
[Site "Chess.com"]
[Date "2020.01.07"]
[Round "5"]
[White "j2806"]
[Black "LarissaSteenbekkers"]
[Result "1/2-1/2"]
[WhiteElo "1853"]
[BlackElo "1712"]
[TimeControl "180+2"]
[EndTime "14:08:13 PST"]
[Termination "Game drawn by agreement"]

1. e4 {[%clk 0:03:01.9]} 1... e6 {[%clk 0:03:00.2]} 2. d4 {[%clk 0:03:01.9]}
2... d5 {[%clk 0:02:59.3]} 3. exd5 {[%clk 0:03:01]} 3... exd5 {[%clk 0:02:58.8]}
4. c4 {[%clk 0:02:58.8]} 4... Bb4+ {[%clk 0:02:56.8]} 5. Bd2 {[%clk 0:02:58.3]}
5... Nc6 {[%clk 0:02:49.5]} 6. Bxb4 {[%clk 0:02:55.2]} 6... Nxb4 {[%clk
0:02:49.3]} 7. a3 {[%clk 0:02:52]} 7... Nc6 {[%clk 0:02:48.5]} 8. c5 {[%clk
0:02:49.3]} 8... Nf6 {[%clk 0:02:45.7]} 9. Nf3 {[%clk 0:02:45.4]} 9... O-O
{[%clk 0:02:44.2]} 10. Be2 {[%clk 0:02:45.7]} 10... b6 {[%clk 0:02:41.5]} 11. b4
{[%clk 0:02:37.1]} 11... Ne4 {[%clk 0:02:36.4]} 12. O-O {[%clk 0:02:32.8]} 12...
Bg4 {[%clk 0:02:32.3]} 13. Qd3 {[%clk 0:02:25.5]} 13... Qf6 {[%clk 0:02:27.6]}
14. Rd1 {[%clk 0:02:13.3]} 14... Rfe8 {[%clk 0:02:09.8]} 15. Nbd2 {[%clk
0:01:48.4]} 15... Bf5 {[%clk 0:01:57.1]} 16. Qb3 {[%clk 0:01:31.2]} 16... Nxd4
{[%clk 0:01:42.9]} 17. Nxd4 {[%clk 0:01:25.9]} 17... Qxd4 {[%clk 0:01:41.8]} 18.
Nxe4 {[%clk 0:01:18.8]} 18... Qxe4 {[%clk 0:01:41.3]} 19. Bf3 {[%clk 0:01:18.9]}
19... Qc2 {[%clk 0:01:30.5]} 20. Qxd5 {[%clk 0:01:01.3]} 20... Be6 {[%clk
0:01:07]} 21. Qd2 {[%clk 0:00:46.5]} 21... Qxd2 {[%clk 0:01:01.5]} 22. Rxd2
{[%clk 0:00:47.5]} 22... Rab8 {[%clk 0:00:58.8]} 23. cxb6 {[%clk 0:00:47.8]}
23... axb6 {[%clk 0:00:52.2]} 24. Rad1 {[%clk 0:00:44.5]} 24... g6 {[%clk
0:00:49]} 25. Kf1 {[%clk 0:00:37.5]} 25... c5 {[%clk 0:00:36.7]} 26. bxc5 {[%clk
0:00:31.4]} 26... bxc5 {[%clk 0:00:34.6]} 27. Bd5 {[%clk 0:00:31.6]} 27... Bxd5
{[%clk 0:00:28.9]} 28. Rxd5 {[%clk 0:00:32.5]} 28... Rb5 {[%clk 0:00:25.2]} 29.
Rc1 {[%clk 0:00:32.4]} 29... Ra8 {[%clk 0:00:22.4]} 30. Rdxc5 {[%clk 0:00:32]}
30... Rxc5 {[%clk 0:00:23.1]} 31. Rxc5 {[%clk 0:00:32]} 31... Rxa3 {[%clk
0:00:24.5]} 1/2-1/2

[Event "*** Titled Tuesday Blitz"]
[Site "Chess.com"]
[Date "2020.01.07"]
[Round "5"]
[White "Ar4uha"]
[Black "MITerryble"]
[Result "1/2-1/2"]
[WhiteElo "2609"]
[BlackElo "2913"]
[TimeControl "180+2"]
[EndTime "14:08:14 PST"]
[Termination "Game drawn by repetition"]

1. e4 {[%clk 0:02:58.5]} 1... e6 {[%clk 0:02:56.5]} 2. c4 {[%clk 0:02:59.1]}
2... d5 {[%clk 0:02:40.4]} 3. exd5 {[%clk 0:03:01]} 3... exd5 {[%clk 0:02:41.7]}
4. cxd5 {[%clk 0:03:02.9]} 4... Nf6 {[%clk 0:02:41.3]} 5. Bb5+ {[%clk
0:03:04.2]} 5... Nbd7 {[%clk 0:02:42]} 6. Nc3 {[%clk 0:03:05.1]} 6... Be7 {[%clk
0:02:42.1]} 7. d4 {[%clk 0:03:05.5]} 7... O-O {[%clk 0:02:39.8]} 8. Nf3 {[%clk
0:03:07.1]} 8... Nb6 {[%clk 0:02:39.9]} 9. O-O {[%clk 0:03:08]} 9... Nbxd5
{[%clk 0:02:41.1]} 10. Re1 {[%clk 0:03:09.3]} 10... c6 {[%clk 0:02:36.7]} 11.
Bd3 {[%clk 0:03:09.1]} 11... Bb4 {[%clk 0:02:31.5]} 12. Bd2 {[%clk 0:03:09.6]}
12... Bg4 {[%clk 0:02:30.5]} 13. h3 {[%clk 0:03:10.6]} 13... Bh5 {[%clk
0:02:31.3]} 14. g4 {[%clk 0:03:12.2]} 14... Bg6 {[%clk 0:02:32.5]} 15. Bxg6
{[%clk 0:03:13.7]} 15... hxg6 {[%clk 0:02:34.4]} 16. Ne5 {[%clk 0:03:15.6]}
16... Bd6 {[%clk 0:02:30.6]} 17. Qb3 {[%clk 0:03:16.4]} 17... Qb6 {[%clk
0:02:29.2]} 18. g5 {[%clk 0:03:15.7]} 18... Qxd4 {[%clk 0:02:11.4]} 19. Nf3
{[%clk 0:03:02]} 19... Qb6 {[%clk 0:01:48.7]} 20. gxf6 {[%clk 0:03:00.8]} 20...
Nxf6 {[%clk 0:01:50.6]} 21. Qxb6 {[%clk 0:03:01.6]} 21... axb6 {[%clk
0:01:52.4]} 22. a3 {[%clk 0:03:01.3]} 22... b5 {[%clk 0:01:38.3]} 23. Ne4 {[%clk
0:03:02.1]} 23... Nxe4 {[%clk 0:01:36.7]} 24. Rxe4 {[%clk 0:03:04]} 24... Rfd8
{[%clk 0:01:37.4]} 25. Bc3 {[%clk 0:03:03.9]} 25... f6 {[%clk 0:01:37.4]} 26.
Rae1 {[%clk 0:03:03.8]} 26... Kf7 {[%clk 0:01:38.8]} 27. Kg2 {[%clk 0:03:05.2]}
27... Rd7 {[%clk 0:01:36.3]} 28. Nd4 {[%clk 0:03:05.9]} 28... Be5 {[%clk
0:01:35.5]} 29. Ne2 {[%clk 0:03:05.3]} 29... Bc7 {[%clk 0:01:36.1]} 30. Nc1
{[%clk 0:03:02.8]} 30... g5 {[%clk 0:01:30.7]} 31. Nb3 {[%clk 0:03:03]} 31...
Bb6 {[%clk 0:01:25.8]} 32. Bd4 {[%clk 0:03:00.5]} 32... f5 {[%clk 0:01:24.6]}
33. Bxb6 {[%clk 0:02:58.7]} 33... fxe4 {[%clk 0:01:26]} 34. Rxe4 {[%clk
0:03:00.6]} 34... Kg6 {[%clk 0:01:07.9]} 35. Be3 {[%clk 0:03:00.1]} 35... Rf8
{[%clk 0:00:59.9]} 36. Nc5 {[%clk 0:02:56.9]} 36... Rdf7 {[%clk 0:00:58.2]} 37.
Ne6 {[%clk 0:02:52.1]} 37... Re8 {[%clk 0:00:59.4]} 38. Nxg5 {[%clk 0:02:38.1]}
38... Rxe4 {[%clk 0:01:01.3]} 39. Nxe4 {[%clk 0:02:40]} 39... Re7 {[%clk
0:00:59.9]} 40. Kf3 {[%clk 0:02:41.1]} 40... Kf5 {[%clk 0:01:00.7]} 41. Ng3+
{[%clk 0:02:30]} 41... Ke5 {[%clk 0:01:01.5]} 42. Ke2 {[%clk 0:02:31.7]} 42...
Kd5 {[%clk 0:00:59.9]} 43. Kd3 {[%clk 0:02:33.2]} 43... c5 {[%clk 0:01:00]} 44.
Nf5 {[%clk 0:02:33.3]} 44... Rf7 {[%clk 0:01:00.2]} 45. Nh4 {[%clk 0:02:33]}
45... b6 {[%clk 0:00:55]} 46. Ng6 {[%clk 0:02:33.8]} 46... Rd7 {[%clk
0:00:52.1]} 47. Nf4+ {[%clk 0:02:18.6]} 47... Ke5+ {[%clk 0:00:53.4]} 48. Ke2
{[%clk 0:02:20.2]} 48... Ke4 {[%clk 0:00:52.1]} 49. Bd2 {[%clk 0:02:12]} 49...
Re7 {[%clk 0:00:40.9]} 50. f3+ {[%clk 0:02:09.3]} 50... Kd4+ {[%clk 0:00:41.4]}
51. Kf2 {[%clk 0:02:10.6]} 51... Kc4 {[%clk 0:00:42.4]} 52. Ng6 {[%clk 0:02:10]}
52... Re6 {[%clk 0:00:42.6]} 53. Nf4 {[%clk 0:02:09.9]} 53... Re7 {[%clk
0:00:43.6]} 54. Ng6 {[%clk 0:02:11]} 54... Re6 {[%clk 0:00:43.4]} 55. Nf4 {[%clk
0:02:12]} 55... Re7 {[%clk 0:00:29.5]} 1/2-1/2